Workbook

Sheet Einleitung
B2: GearCalc by Motorhead
C4: folgende Felder sind für euch als Anwender je nach Anforderungen in den Setups zu ändern!
C5: der Einfachheit halber, sind diese Felder in Orange gehalten.
C32: etwaige Updates, Erweiterungen, Änderungen usw. findet ihr hier im GSF:
C33: http://www.germanscooterforum.de/topic/260663-gearcalc-by-motorhead-excel-getrieberechner-ahnlich-geardata/
C36: ihr könnt auch im Diagramm die Limits von Drehzahl und Geschwindigkeit selber setzen.
C37: dazu mit der rechten Maustaste auf die Achsenbeschriftung klicken und unter "Achse formatieren"
C38: die Werte entsprechend anpassen!

Sheet GearCalc
B2: GearCalc v3.10 by Motorhead
C41: Setup 1 | K41: Setup 2 | S41: Setup 3 | AA41: Setup 4 | AI41: Setup 5 | AQ41: Setup 6
C43: Smallframe 2.56 Standard | K43: Smallframe 2.56 + Z48 DRT (nur 4. Gang) | S43: Smallframe 2.56+ ZIRRI vierter | AA43: PX125 Lusso Standard | AI43: PX200 Lusso Standard | AQ43: PX200 Lusso mit Z37 DRT (nur 4. Gang)
E45: Radumfang [mm] | F45: 1250 | M45: Radumfang [mm] | N45: 1250 | U45: Radumfang [mm] | V45: 1250 | AC45: Radumfang [mm] | AD45: 1355 | AK45: Radumfang [mm] | AL45: 1355 | AS45: Radumfang [mm] | AT45: 1355
F47: Z1 | G47: Z2 | H47: ÜS | N47: Z1 | O47: Z2 | P47: ÜS | V47: Z1 | W47: Z2 | X47: ÜS | AD47: Z1 | AE47: Z2 | AF47: ÜS | AL47: Z1 | AM47: Z2 | AN47: ÜS | AT47: Z1 | AU47: Z2 | AV47: ÜS
E48: Übersetzung | F48: 27 | G48: 69 | H48: =G48/F48 -> 2.555555556 | M48: Übersetzung | N48: 27 | O48: 69 | P48: =O48/N48 -> 2.555555556 | U48: Übersetzung | V48: 27 | W48: 69 | X48: =W48/V48 -> 2.555555556 | AC48: Übersetzung | AD48: 20 | AE48: 68 | AF48: =AE48/AD48 -> 3.4 | AK48: Übersetzung | AL48: 23 | AM48: 65 | AN48: =AM48/AL48 -> 2.826086957 | AS48: Übersetzung | AT48: 23 | AU48: 65 | AV48: =AU48/AT48 -> 2.826086957
AT49: 27
D50: G1 | E50: G2 | F50: G3 | G50: G4 | H50: G5 | I50: G6 | L50: G1 | M50: G2 | N50: G3 | O50: G4 | P50: G5 | Q50: G6 | T50: G1 | U50: G2 | V50: G3 | W50: G4 | X50: G5 | Y50: G6 | AB50: G1 | AC50: G2 | AD50: G3 | AE50: G4 | AF50: G5 | AG50: G6 | AJ50: G1 | AK50: G2 | AL50: G3 | AM50: G4 | AN50: G5 | AO50: G6 | AR50: G1 | AS50: G2 | AT50: G3 | AU50: G4 | AV50: G5 | AW50: G6
C51: Z1 | D51: 10 | E51: 14 | F51: 18 | G51: 22 | H51: 1 | I51: 1 | K51: Z1 | L51: 10 | M51: 14 | N51: 18 | O51: 22 | P51: 1 | Q51: 1 | S51: Z1 | T51: 10 | U51: 14 | V51: 18 | W51: 21 | X51: 1 | Y51: 1 | AA51: Z1 | AB51: 12 | AC51: 13 | AD51: 17 | AE51: 21 | AF51: 1 | AG51: 1 | AI51: Z1 | AJ51: 12 | AK51: 13 | AL51: 17 | AM51: 21 | AN51: 1 | AO51: 1 | AQ51: Z1 | AR51: 12 | AS51: 13 | AT51: 17 | AU51: 21 | AV51: 1 | AW51: 1
C52: Z2 | D52: 58 | E52: 54 | F52: 50 | G52: 46 | H52: 2 | I52: 1.8 | K52: Z2 | L52: 58 | M52: 54 | N52: 50 | O52: 48 | P52: 2 | Q52: 1.8 | S52: Z2 | T52: 58 | U52: 54 | V52: 50 | W52: 49 | X52: 2 | Y52: 1.8 | AA52: Z2 | AB52: 58 | AC52: 42 | AD52: 38 | AE52: 36 | AF52: 2 | AG52: 1.8 | AI52: Z2 | AJ52: 57 | AK52: 42 | AL52: 38 | AM52: 35 | AN52: 2 | AO52: 1.8 | AQ52: Z2 | AR52: 57 | AS52: 42 | AT52: 38 | AU52: 37 | AV52: 2 | AW52: 1.8
C53: ÜS | D53: =D52/D51*D57*C57 -> 5.8 | E53: =E52/E51*E57*C57 -> 3.857142857 | F53: =F52/F51*F57*C57 -> 2.777777778 | G53: =G52/G51*G57*C57 -> 2.090909091 | H53: =H52/H51*H57*C57 -> 0 | I53: =I52/I51*I57*C57 -> 0 | K53: ÜS | L53: =L52/L51*L57*K57 -> 0 | M53: =M52/M51*M57*K57 -> 0 | N53: =N52/N51*N57*K57 -> 0 | O53: =O52/O51*O57*K57 -> 0 | P53: =P52/P51*P57*K57 -> 0 | Q53: =Q52/Q51*Q57*K57 -> 0 | S53: ÜS | T53: =T52/T51*T57*S57 -> 0 | U53: =U52/U51*U57*S57 -> 0 | V53: =V52/V51*V57*S57 -> 0 | W53: =W52/W51*W57*S57 -> 0 | X53: =X52/X51*X57*S57 -> 0 | Y53: =Y52/Y51*Y57*S57 -> 0 | AA53: ÜS | AB53: =AB52/AB51*AB57*AA57 -> 0 | AC53: =AC52/AC51*AC57*AA57 -> 0 | AD53: =AD52/AD51*AD57*AA57 -> 0 | AE53: =AE52/AE51*AE57*AA57 -> 0 | AF53: =AF52/AF51*AF57*AA57 -> 0 | AG53: =AG52/AG51*AG57*AA57 -> 0 | AI53: ÜS | AJ53: =AJ52/AJ51*AJ57*AI57 -> 4.75 | AK53: =AK52/AK51*AK57*AI57 -> 3.230769231 | AL53: =AL52/AL51*AL57*AI57 -> 2.235294118 | AM53: =AM52/AM51*AM57*AI57 -> 1.666666667 | AN53: =AN52/AN51*AN57*AI57 -> 0 | AO53: =AO52/AO51*AO57*AI57 -> 0 | AQ53: ÜS | AR53: =AR52/AR51*AR57*AQ57 -> 0 | AS53: =AS52/AS51*AS57*AQ57 -> 0 | AT53: =AT52/AT51*AT57*AQ57 -> 0 | AU53: =AU52/AU51*AU57*AQ57 -> 0 | AV53: =AV52/AV51*AV57*AQ57 -> 0 | AW53: =AW52/AW51*AW57*AQ57 -> 0
C55: im Diagramm alle/einzelne Gänge EIN/AUS (0/1) | K55: im Diagramm alle/einzelne Gänge EIN/AUS (0/1) | S55: im Diagramm alle/einzelne Gänge EIN/AUS (0/1) | AA55: im Diagramm alle/einzelne Gänge EIN/AUS (0/1) | AI55: im Diagramm alle/einzelne Gänge EIN/AUS (0/1) | AQ55: im Diagramm alle/einzelne Gänge EIN/AUS (0/1)
C56: Alle | D56: G1 | E56: G2 | F56: G3 | G56: G4 | H56: G5 | I56: G6 | K56: Alle | L56: G1 | M56: G2 | N56: G3 | O56: G4 | P56: G5 | Q56: G6 | S56: Alle | T56: G1 | U56: G2 | V56: G3 | W56: G4 | X56: G5 | Y56: G6 | AA56: Alle | AB56: G1 | AC56: G2 | AD56: G3 | AE56: G4 | AF56: G5 | AG56: G6 | AI56: Alle | AJ56: G1 | AK56: G2 | AL56: G3 | AM56: G4 | AN56: G5 | AO56: G6 | AQ56: Alle | AR56: G1 | AS56: G2 | AT56: G3 | AU56: G4 | AV56: G5 | AW56: G6
C57: 1 | D57: 1 | E57: 1 | F57: 1 | G57: 1 | H57: 0 | I57: 0 | K57: 0 | L57: 1 | M57: 1 | N57: 1 | O57: 1 | P57: 0 | Q57: 0 | S57: 0 | T57: 1 | U57: 1 | V57: 1 | W57: 1 | X57: 0 | Y57: 0 | AA57: 0 | AB57: 1 | AC57: 1 | AD57: 1 | AE57: 1 | AF57: 0 | AG57: 0 | AI57: 1 | AJ57: 1 | AK57: 1 | AL57: 1 | AM57: 1 | AN57: 0 | AO57: 0 | AQ57: 0 | AR57: 1 | AS57: 1 | AT57: 1 | AU57: 1 | AV57: 0 | AW57: 0
E59: 1=>2 | F59: 2=>3 | G59: 3=>4 | H59: 4=>5 | I59: 5=>6 | M59: 1=>2 | N59: 2=>3 | O59: 3=>4 | P59: 4=>5 | Q59: 5=>6 | U59: 1=>2 | V59: 2=>3 | W59: 3=>4 | X59: 4=>5 | Y59: 5=>6 | AC59: 1=>2 | AD59: 2=>3 | AE59: 3=>4 | AF59: 4=>5 | AG59: 5=>6 | AK59: 1=>2 | AL59: 2=>3 | AM59: 3=>4 | AN59: 4=>5 | AO59: 5=>6 | AS59: 1=>2 | AT59: 2=>3 | AU59: 3=>4 | AV59: 4=>5 | AW59: 5=>6
C60: Gangsprung | E60: =uebersetzung1gang1/uebersetzung1gang2 -> 1.503703704 | F60: =uebersetzung1gang2/uebersetzung1gang3 -> 1.388571429 | G60: =uebersetzung1gang3/uebersetzung1gang4 -> 1.328502415 | H60: =uebersetzung1gang4/uebersetzung1gang5 ->  | I60: =uebersetzung1gang5/uebersetzung1gang6 ->  | K60: Gangsprung | M60: =uebersetzung2gang1/uebersetzung2gang2 ->  | N60: =uebersetzung2gang2/uebersetzung2gang3 ->  | O60: =uebersetzung2gang3/uebersetzung2gang4 ->  | P60: =uebersetzung2gang4/uebersetzung2gang5 ->  | Q60: =uebersetzung2gang5/uebersetzung2gang6 ->  | S60: Gangsprung | U60: =uebersetzung3gang1/uebersetzung3gang2 ->  | V60: =uebersetzung3gang2/uebersetzung3gang3 ->  | W60: =uebersetzung3gang3/uebersetzung3gang4 ->  | X60: =uebersetzung3gang4/uebersetzung3gang5 ->  | Y60: =uebersetzung3gang5/uebersetzung3gang6 ->  | AA60: Gangsprung | AC60: =uebersetzung4gang1/uebersetzung4gang2 ->  | AD60: =uebersetzung4gang2/uebersetzung4gang3 ->  | AE60: =uebersetzung4gang3/uebersetzung4gang4 ->  | AF60: =uebersetzung4gang4/uebersetzung4gang5 ->  | AG60: =uebersetzung4gang5/uebersetzung4gang6 ->  | AI60: Gangsprung | AK60: =uebersetzung5gang1/uebersetzung5gang2 -> 1.470238095 | AL60: =uebersetzung5gang2/uebersetzung5gang3 -> 1.44534413 | AM60: =uebersetzung5gang3/uebersetzung5gang4 -> 1.341176471 | AN60: =uebersetzung5gang4/uebersetzung5gang5 ->  | AO60: =uebersetzung5gang5/uebersetzung5gang6 ->  | AQ60: Gangsprung | AS60: =uebersetzung6gang1/uebersetzung6gang2 ->  | AT60: =uebersetzung6gang2/uebersetzung6gang3 ->  | AU60: =uebersetzung6gang3/uebersetzung6gang4 ->  | AV60: =uebersetzung6gang4/uebersetzung6gang5 ->  | AW60: =uebersetzung6gang5/uebersetzung6gang6 -> 
C62: GangräderRange | G62: 4-Gang | H62: =uebersetzung1gang1/uebersetzung1gang4 -> 2.773913043 | K62: GangräderRange | O62: 4-Gang | P62: =uebersetzung2gang1/uebersetzung2gang4 ->  | S62: GangräderRange | W62: 4-Gang | X62: =uebersetzung3gang1/uebersetzung3gang4 ->  | AA62: GangräderRange | AE62: 4-Gang | AF62: =uebersetzung4gang1/uebersetzung4gang4 ->  | AI62: GangräderRange | AM62: 4-Gang | AN62: =uebersetzung5gang1/uebersetzung5gang4 -> 2.85 | AQ62: GangräderRange | AU62: 4-Gang | AV62: =uebersetzung6gang1/uebersetzung6gang4 -> 
G63: 5-Gang | H63: =uebersetzung1gang1/uebersetzung1gang5 ->  | O63: 5-Gang | P63: =uebersetzung2gang1/uebersetzung2gang5 ->  | W63: 5-Gang | X63: =uebersetzung3gang1/uebersetzung3gang5 ->  | AE63: 5-Gang | AF63: =uebersetzung4gang1/uebersetzung4gang5 ->  | AM63: 5-Gang | AN63: =uebersetzung5gang1/uebersetzung5gang5 ->  | AU63: 5-Gang | AV63: =uebersetzung6gang1/uebersetzung6gang5 -> 
G64: 6-Gang | H64: =uebersetzung1gang1/uebersetzung1gang6 ->  | O64: 6-Gang | P64: =uebersetzung2gang1/uebersetzung2gang6 ->  | W64: 6-Gang | X64: =uebersetzung3gang1/uebersetzung3gang6 ->  | AE64: 6-Gang | AF64: =uebersetzung4gang1/uebersetzung4gang6 ->  | AM64: 6-Gang | AN64: =uebersetzung5gang1/uebersetzung5gang6 ->  | AU64: 6-Gang | AV64: =uebersetzung6gang1/uebersetzung6gang6 -> 
D66: Geschwindigkeitstabelle [km/h] | L66: Geschwindigkeitstabelle [km/h] | T66: Geschwindigkeitstabelle [km/h] | AB66: Geschwindigkeitstabelle [km/h] | AJ66: Geschwindigkeitstabelle [km/h] | AR66: Geschwindigkeitstabelle [km/h]
C67: U/min | D67: G1 | E67: G2 | F67: G3 | G67: G4 | H67: G5 | I67: G6 | K67: U/min | L67: G1 | M67: G2 | N67: G3 | O67: G4 | P67: G5 | Q67: G6 | S67: U/min | T67: G1 | U67: G2 | V67: G3 | W67: G4 | X67: G5 | Y67: G6 | AA67: U/min | AB67: G1 | AC67: G2 | AD67: G3 | AE67: G4 | AF67: G5 | AG67: G6 | AI67: U/min | AJ67: G1 | AK67: G2 | AL67: G3 | AM67: G4 | AN67: G5 | AO67: G6 | AQ67: U/min | AR67: G1 | AS67: G2 | AT67: G3 | AU67: G4 | AV67: G5 | AW67: G6
C68: 500 | D68: =C68*60*radumfang1/1000/(uebersetzung1*uebersetzung1gang1*1000) -> 2.529985007 | E68: =C68*60*radumfang1/1000/(uebersetzung1*uebersetzung1gang2*1000) -> 3.804347826 | F68: =C68*60*radumfang1/1000/(uebersetzung1*uebersetzung1gang3*1000) -> 5.282608696 | G68: =C68*60*radumfang1/1000/(uebersetzung1*uebersetzung1gang4*1000) -> 7.017958412 | H68: =C68*60*radumfang1/1000/(uebersetzung1*uebersetzung1gang5*1000) ->  | I68: =C68*60*radumfang1/1000/(uebersetzung1*uebersetzung1gang6*1000) ->  | K68: 500 | L68: =K68*60*radumfang2/1000/(uebersetzung2*uebersetzung2gang1*1000) ->  | M68: =K68*60*radumfang2/1000/(uebersetzung2*uebersetzung2gang2*1000) ->  | N68: =K68*60*radumfang2/1000/(uebersetzung2*uebersetzung2gang3*1000) ->  | O68: =K68*60*radumfang2/1000/(uebersetzung2*uebersetzung2gang4*1000) ->  | P68: =K68*60*radumfang2/1000/(uebersetzung2*uebersetzung2gang5*1000) ->  | Q68: =K68*60*radumfang2/1000/(uebersetzung2*uebersetzung2gang6*1000) ->  | S68: 500 | T68: =S68*60*radumfang3/1000/(uebersetzung3*uebersetzung3gang1*1000) ->  | U68: =S68*60*radumfang3/1000/(uebersetzung3*uebersetzung3gang2*1000) ->  | V68: =S68*60*radumfang3/1000/(uebersetzung3*uebersetzung3gang3*1000) ->  | W68: =S68*60*radumfang3/1000/(uebersetzung3*uebersetzung3gang4*1000) ->  | X68: =S68*60*radumfang3/1000/(uebersetzung3*uebersetzung3gang5*1000) ->  | Y68: =S68*60*radumfang3/1000/(uebersetzung3*uebersetzung3gang6*1000) ->  | AA68: 500 | AB68: =AA68*60*radumfang4/1000/(uebersetzung4*uebersetzung4gang1*1000) ->  | AC68: =AA68*60*radumfang4/1000/(uebersetzung4*uebersetzung4gang2*1000) ->  | AD68: =AA68*60*radumfang4/1000/(uebersetzung4*uebersetzung4gang3*1000) ->  | AE68: =AA68*60*radumfang4/1000/(uebersetzung4*uebersetzung4gang4*1000) ->  | AF68: =AA68*60*radumfang4/1000/(uebersetzung4*uebersetzung4gang5*1000) ->  | AG68: =AA68*60*radumfang4/1000/(uebersetzung4*uebersetzung4gang6*1000) ->  | AI68: 500 | AJ68: =AI68*60*radumfang5/1000/(uebersetzung5*uebersetzung5gang1*1000) -> 3.028178138 | AK68: =AI68*60*radumfang5/1000/(uebersetzung5*uebersetzung5gang2*1000) -> 4.452142857 | AL68: =AI68*60*radumfang5/1000/(uebersetzung5*uebersetzung5gang3*1000) -> 6.434878543 | AM68: =AI68*60*radumfang5/1000/(uebersetzung5*uebersetzung5gang4*1000) -> 8.630307692 | AN68: =AI68*60*radumfang5/1000/(uebersetzung5*uebersetzung5gang5*1000) ->  | AO68: =AI68*60*radumfang5/1000/(uebersetzung5*uebersetzung5gang6*1000) ->  | AQ68: 500 | AR68: =AQ68*60*radumfang6/1000/(uebersetzung6*uebersetzung6gang1*1000) ->  | AS68: =AQ68*60*radumfang6/1000/(uebersetzung6*uebersetzung6gang2*1000) ->  | AT68: =AQ68*60*radumfang6/1000/(uebersetzung6*uebersetzung6gang3*1000) ->  | AU68: =AQ68*60*radumfang6/1000/(uebersetzung6*uebersetzung6gang4*1000) ->  | AV68: =AQ68*60*radumfang6/1000/(uebersetzung6*uebersetzung6gang5*1000) ->  | AW68: =AQ68*60*radumfang6/1000/(uebersetzung6*uebersetzung6gang6*1000) -> 
C69: =C68+500 -> 1000 | D69: =C69*60*radumfang1/1000/(uebersetzung1*uebersetzung1gang1*1000) -> 5.059970015 | E69: =C69*60*radumfang1/1000/(uebersetzung1*uebersetzung1gang2*1000) -> 7.608695652 | F69: =C69*60*radumfang1/1000/(uebersetzung1*uebersetzung1gang3*1000) -> 10.56521739 | G69: =C69*60*radumfang1/1000/(uebersetzung1*uebersetzung1gang4*1000) -> 14.03591682 | H69: =C69*60*radumfang1/1000/(uebersetzung1*uebersetzung1gang5*1000) ->  | I69: =C69*60*radumfang1/1000/(uebersetzung1*uebersetzung1gang6*1000) ->  | K69: =K68+500 -> 1000 | S69: =S68+500 -> 1000 | AA69: =AA68+500 -> 1000 | AB69: =AA69*60*radumfang4/1000/(uebersetzung4*uebersetzung4gang1*1000) ->  | AI69: =AI68+500 -> 1000 | AJ69: 6.056356275 | AK69: 8.904285714 | AL69: 12.86975709 | AM69: 17.26061538 | AQ69: =AQ68+500 -> 1000
C70: =C69+500 -> 1500 | D70: 7.589955022 | E70: 11.41304348 | F70: 15.84782609 | G70: 21.05387524 | K70: =K69+500 -> 1500 | S70: =S69+500 -> 1500 | AA70: =AA69+500 -> 1500 | AI70: =AI69+500 -> 1500 | AJ70: 9.084534413 | AK70: 13.35642857 | AL70: 19.30463563 | AM70: 25.89092308 | AQ70: =AQ69+500 -> 1500
C71: 2000 | D71: 10.11994003 | E71: 15.2173913 | F71: 21.13043478 | G71: 28.07183365 | K71: 2000 | S71: 2000 | AA71: 2000 | AI71: 2000 | AJ71: 12.11271255 | AK71: 17.80857143 | AL71: 25.73951417 | AM71: 34.52123077 | AQ71: 2000
C72: 2500 | D72: 12.64992504 | E72: 19.02173913 | F72: 26.41304348 | G72: 35.08979206 | K72: 2500 | S72: 2500 | AA72: 2500 | AI72: 2500 | AJ72: 15.14089069 | AK72: 22.26071429 | AL72: 32.17439271 | AM72: 43.15153846 | AQ72: 2500
C73: 3000 | D73: 15.17991004 | E73: 22.82608696 | F73: 31.69565217 | G73: 42.10775047 | K73: 3000 | S73: 3000 | AA73: 3000 | AI73: 3000 | AJ73: 18.16906883 | AK73: 26.71285714 | AL73: 38.60927126 | AM73: 51.78184615 | AQ73: 3000
C74: 3500 | D74: 17.70989505 | E74: 26.63043478 | F74: 36.97826087 | G74: 49.12570888 | K74: 3500 | S74: 3500 | AA74: 3500 | AI74: 3500 | AJ74: 21.19724696 | AK74: 31.165 | AL74: 45.0441498 | AM74: 60.41215385 | AQ74: 3500
C75: 4000 | D75: 20.23988006 | E75: 30.43478261 | F75: 42.26086957 | G75: 56.1436673 | K75: 4000 | S75: 4000 | AA75: 4000 | AI75: 4000 | AJ75: 24.2254251 | AK75: 35.61714286 | AL75: 51.47902834 | AM75: 69.04246154 | AQ75: 4000
C76: 4500 | D76: 22.76986507 | E76: 34.23913043 | F76: 47.54347826 | G76: 63.16162571 | K76: 4500 | S76: 4500 | AA76: 4500 | AI76: 4500 | AJ76: 27.25360324 | AK76: 40.06928571 | AL76: 57.91390688 | AM76: 77.67276923 | AQ76: 4500
C77: 5000 | D77: 25.29985007 | E77: 38.04347826 | F77: 52.82608696 | G77: 70.17958412 | K77: 5000 | S77: 5000 | AA77: 5000 | AI77: 5000 | AJ77: 30.28178138 | AK77: 44.52142857 | AL77: 64.34878543 | AM77: 86.30307692 | AQ77: 5000
C78: 5500 | D78: 27.82983508 | E78: 41.84782609 | F78: 58.10869565 | G78: 77.19754253 | K78: 5500 | S78: 5500 | AA78: 5500 | AI78: 5500 | AJ78: 33.30995951 | AK78: 48.97357143 | AL78: 70.78366397 | AM78: 94.93338462 | AQ78: 5500
C79: 6000 | D79: 30.35982009 | E79: 45.65217391 | F79: 63.39130435 | G79: 84.21550095 | K79: 6000 | S79: 6000 | AA79: 6000 | AI79: 6000 | AJ79: 36.33813765 | AK79: 53.42571429 | AL79: 77.21854251 | AM79: 103.5636923 | AQ79: 6000
C80: 6500 | D80: 32.8898051 | E80: 49.45652174 | F80: 68.67391304 | G80: 91.23345936 | K80: 6500 | S80: 6500 | AA80: 6500 | AI80: 6500 | AJ80: 39.36631579 | AK80: 57.87785714 | AL80: 83.65342105 | AM80: 112.194 | AQ80: 6500
C81: 7000 | D81: 35.4197901 | E81: 53.26086957 | F81: 73.95652174 | G81: 98.25141777 | K81: 7000 | S81: 7000 | AA81: 7000 | AI81: 7000 | AJ81: 42.39449393 | AK81: 62.33 | AL81: 90.0882996 | AM81: 120.8243077 | AQ81: 7000
C82: 7500 | D82: 37.94977511 | E82: 57.06521739 | F82: 79.23913043 | G82: 105.2693762 | K82: 7500 | S82: 7500 | AA82: 7500 | AI82: 7500 | AJ82: 45.42267206 | AK82: 66.78214286 | AL82: 96.52317814 | AM82: 129.4546154 | AQ82: 7500
C83: 8000 | D83: 40.47976012 | E83: 60.86956522 | F83: 84.52173913 | G83: 112.2873346 | K83: 8000 | S83: 8000 | AA83: 8000 | AI83: 8000 | AJ83: 48.4508502 | AK83: 71.23428571 | AL83: 102.9580567 | AM83: 138.0849231 | AQ83: 8000
C84: 8500 | D84: 43.00974513 | E84: 64.67391304 | F84: 89.80434783 | G84: 119.305293 | K84: 8500 | S84: 8500 | AA84: 8500 | AI84: 8500 | AJ84: 51.47902834 | AK84: 75.68642857 | AL84: 109.3929352 | AM84: 146.7152308 | AQ84: 8500
C85: 9000 | D85: 45.53973013 | E85: 68.47826087 | F85: 95.08695652 | G85: 126.3232514 | K85: 9000 | S85: 9000 | AA85: 9000 | AI85: 9000 | AJ85: 54.50720648 | AK85: 80.13857143 | AL85: 115.8278138 | AM85: 155.3455385 | AQ85: 9000
C86: 9500 | D86: 48.06971514 | E86: 72.2826087 | F86: 100.3695652 | G86: 133.3412098 | K86: 9500 | S86: 9500 | AA86: 9500 | AI86: 9500 | AJ86: 57.53538462 | AK86: 84.59071429 | AL86: 122.2626923 | AM86: 163.9758462 | AQ86: 9500
C87: 10000 | D87: 50.59970015 | E87: 76.08695652 | F87: 105.6521739 | G87: 140.3591682 | K87: 10000 | S87: 10000 | AA87: 10000 | AI87: 10000 | AJ87: 60.56356275 | AK87: 89.04285714 | AL87: 128.6975709 | AM87: 172.6061538 | AQ87: 10000
C88: 10500 | D88: 53.12968516 | E88: 79.89130435 | F88: 110.9347826 | G88: 147.3771267 | K88: 10500 | S88: 10500 | AA88: 10500 | AI88: 10500 | AJ88: 63.59174089 | AK88: 93.495 | AL88: 135.1324494 | AM88: 181.2364615 | AQ88: 10500
C89: 11000 | D89: 55.65967016 | E89: 83.69565217 | F89: 116.2173913 | G89: 154.3950851 | K89: 11000 | S89: 11000 | AA89: 11000 | AI89: 11000 | AJ89: 66.61991903 | AK89: 97.94714286 | AL89: 141.5673279 | AM89: 189.8667692 | AQ89: 11000
C90: =C89+500 -> 11500 | D90: 58.18965517 | E90: 87.5 | F90: 121.5 | G90: 161.4130435 | K90: =K89+500 -> 11500 | S90: =S89+500 -> 11500 | AA90: =AA89+500 -> 11500 | AI90: =AI89+500 -> 11500 | AJ90: 69.64809717 | AK90: 102.3992857 | AL90: 148.0022065 | AM90: 198.4970769 | AQ90: =AQ89+500 -> 11500
C91: 12000 | D91: 60.71964018 | E91: 91.30434783 | F91: 126.7826087 | G91: 168.4310019 | K91: 12000 | S91: 12000 | AA91: 12000 | AI91: 12000 | AJ91: 72.6762753 | AK91: 106.8514286 | AL91: 154.437085 | AM91: 207.1273846 | AQ91: 12000

Sheet INFO Smallframe
B1: Getriebevarianten Smallframe Standard:
B2: http://www.germanscooterforum.de/index.php?showtopic=75882
B4: Primärübersetzungen Smallframe:
B6: 4,93er (69:14) schräg / M 1,75 .. Serie: V50S, ital. HP50-Modell .. Anm.: Komb. mit Pinasco-Ritzel (16 Zähne) möglich
B7: 4,60er (69:15) schräg / M 1,75 .. Serie: V50 ab ´76/´77, alle PK50S/XL/XL2 .. Anm.: Komb. mit Pinasco-Ritzel (16 Zähne) möglich
B8: 4,25er (68:16) schräg / M 1,75 .. Serie: V50N Dreigang ca.´75
B9: 4,19er (67:16) schräg / M 1,75 .. Serie: V50 Special Dreigang
B10: ---- Kein 4,00er (60:15) wie z.B. bei Scooterhelp im Gearing Calculator aufgeführt!!!!!! ----
B11: 3,72er (67:18) schräg / M 1,75 .. Serie: V50SS/SR, auch V50S (ab ´66 / unificata) und V50N/R/L (ital. Dreigang mit 9 Zoll-Bereifung)
B12: 3,62er (76:21) gerade / M 1,5 (taucht bisweilen auf, aber nirgends lieferbar!)
B13: 3,25er (65:20) schräg / M 1,75 .. Serie: nur bekannt bei Motovespa PK75XL (Spanien)
B14: 3,00er (72:24) gerade / M 1,5 .. Anm.: Komb. mit DRT* Ritzel mit 22, 23 und 25 Zähnen möglich
B15: 2,95er (62:21) gerade / M 1,75 (Alu von Polini)
B16: 2,86er (63:22) schräg / M 1,75 .. Serie: V90, PK80S
B17: 2,60er (60:23) gerade / M 1,75 (Alu von Polini)
B18: 2,56er (69:27) gerade / M 1,5 .. Anm.: Komb. mit DRT* Ritzel mit 24, 25, 26 und 28 Zähnen möglich
B19: 2,54er (61:24) schräg / M 1,75 .. Serie: V90SS, Primavera, PK125S/XL/XL2, P125ETS
B20: 2,42er (58:24) gerade / M1,75 (Alu von Polini)
B21: 2,34er (68:29) gerade / M 1,5 .. Anm.: Komb. mit DRT* Ritzel mit 28 Zähnen möglich
B23: Anm.: M = Modul, schräg = Originale Piaggio-Variante schrägverzahnt, gerade = Zubehörvariante geradeverzahnt
B25: #######################################################################################
B26: DRT: Mögliche Übersetzungsverhältnisse Primär:
B28: 22/ 72 (3,30) DRT Art.-Nr.: 4043172B (mit Art.-Nr.: 15300000)
B29: 23/ 72 (3.13) DRT Art.-Nr.: 4043172 (mit Art.-Nr.: 15300000)
B30: 24/ 72 (3.00) Art.-Nr.: 15300000
B31: 25/ 72 (2.88) DRT Art.-Nr.: 4043172A (mit Art.-Nr.: 15300000)
B32: 24/ 69 (2.88) DRT Art.-Nr.: 4043180A (mit Art.-Nr.: 15330000)
B33: 25/ 69 (2.76) DRT Art.-Nr.: 4043180 (mit Art.-Nr.: 15330000)
B34: 26/ 69 (2.65) DRT Art.-Nr.: 4043165 (mit Art.-Nr.: 15330000)
B35: 22/ 58 (2.63) DRT Art.-Nr. 4043215 (mit Art.-Nr.: 15410000)
B36: 27/ 69 (2.56) Art.-Nr.: 15330000
B37: 24/ 61 (2.54) Original
B38: 23/ 58 (2.52) DRT Art.-Nr. 4043215A (mit Art.-Nr.: 15410000)
B39: 28/ 69 (2.46) DRT Art.-Nr.: 4043165A (mit Art.-Nr.: 15330000)
B40: 28/ 68 (2.42) DRT Art.-Nr.: 4043167 (mit Art.-Nr.: 15320000)
B41: 24/ 58 (2.42) Art.-Nr.: 15410000
B42: 29/ 68 (2.34) Art.-Nr.: 15320000
B43: 30/ 68 (2.26) DRT Art.-Nr.: 4043167A (mit Art.-Nr.: 15320000)
B46: #####################################################################
B47: Sekundär-/Schaltgetriebeübersetzungen Smallframe:
B48: -geradeverzahnt mit Modul 2,0:
B50: Viergang-Schaltgetriebe Standard:
B51: 1. Gang 58:10 Zähne .. Anm.: Komb. mit DRT* Gangrädern mit 55 und 56 Zähnen möglich
B52: 2. Gang 54:14 Zähne .. Anm.: Komb. mit DRT* Gangrad mit 52 Zähnen möglich
B53: 3. Gang 50:18 Zähne .. Anm.: Komb. mit DRT* Gangrad mit 51 Zähnen möglich
B54: 4. Gang 46:22 Zähne .. Anm.: Komb. mit DRT* Gangrädern 48 Zähnen möglich
B56: Viergang-Schaltgetriebe Standard mit DRT Runner-Nebenwelle
B57: http://www.sip-scootershop.com/de/products/nebenwelle+zahnradsatz+z+2017_40430313
B58: 1. Gang 58:10 Zähne
B59: 2. Gang 54:14 Zähne
B60: 3. Gang 50:17 Zähne <= geändert
B61: 4. Gang 46:20 Zähne <= geändert
B63: Viergang-Schaltgetriebe Standard mit DRT Sincro-Nebenwelle
B64: http://www.sip-scootershop.com/DE/products/nebenwelle+zahnradsatz+z+1917_40442171
B65: 1. Gang 58:10 Zähne
B66: 2. Gang 54:14 Zähne
B67: 3. Gang 50:17 Zähne <= geändert
B68: 4. Gang 46:19 Zähne <= geändert
B70: Viergang-Sondertyp "Österreich lang":
B71: 1. Gang 58:10 Zähne
B72: 2. Gang 54:15 Zähne
B73: 3. Gang 49:21 Zähne
B74: 4. Gang 43:26 Zähne
B77: Viergang-Sondertyp V50S: (nur in Verbindung mit der 4,93er Primär)
B78: 1. Gang 60:10 Zähne
B79: 2. Gang 54:15 Zähne
B80: 3. Gang 49:21 Zähne
B81: 4. Gang 43:26 Zähne
B84: Zirri (geänderter 4. Gang):
B85: 4. Gang 49:21 Zähne
B87: Taffspeed (geänderter 4. Gang):
B88: 4. Gang 46:21 Zähne
B91: Dreigang-Schaltgetriebe Standard:
B92: 1. Gang 60:10 Zähne
B93: 2. Gang 54:16 Zähne
B94: 3. Gang 47:22 Zähne .. Anm.: Komb. mit DRT* Gangrad mit 48 Zähnen möglich
B96: Sondertyp italienisches "HP"-Modell (3 marce):
B97: 1. Gang 58:10 Zähne
B98: 2. Gang 52:16 Zähne
B99: 3. Gang 47:23 Zähne

Sheet INFO Largeframe
B2: Getriebevarianten Largeframe Standard:
B4: PX80
B5: 1. 10/59
B6: 2. 14/55
B7: 3. 19/50
B8: 4. 23/47
B10: PX125alt/150alt
B11: Sprint150
B12: 1. 12/57
B13: 2. 16/54
B14: 3. 20/48
B15: 4. 25/44
B17: PX 125 neu
B18: 1. 12/58
B19: 2. 13/42
B20: 3. 17/38
B21: 4. 21/36
B23: PX150 neu/ PX 200
B24: Cosa 200
B25: 1. 12/57
B26: 2. 13/42
B27: 3. 17/38
B28: 4. 21/35
B30: Primär:
B31: PX200: 23/65
B32: 150 Sprint: 22/67
B33: Cosa 200: 21/68 (wohl erst mit dem Aluzylinder)
B34: PX 125 T5: 20/68
B35: PX 80: 20/68
B36: Polini/Malossi: 23/64
B37: Malossi ultralang: 24/63

Sheet INFO Wideframe
B2: Getriebevarianten Wideframe Standard:
B5: Alle bis 1961 gefertigten Wideframe Motoren, egal ob 8 oder 10", haben folgende Primärübersetzung: 22 / 67.
B8: Alle 125er mit 8" von V1-15 über V30-35 bis VM/VN, ACMA 125, Motovespa 125 N/S (Vermutlich auch Hoffmann und Douglas. Etwas anderes ist mir bis jetzt nicht zu Ohren gekommen) haben folgende Paarungen:
B9: 1. Gang: 14 / 56
B10: 2. Gang: 20 / 50
B11: 3. Gang: 27 / 43
B13: Alle 150er mit 8", also VL und VB:
B14: 1. Gang: 14 / 56
B15: 2. Gang: 20 / 49
B16: 3. Gang: 27 / 42
B18: Alle 150er mit 10", also VGL und VD (T2/T3):
B19: 1. Gang: 12 / 58
B20: 2. Gang: 18 / 52
B21: 3. Gang: 25 / 45
B23: ACMA GL 150 und Pinasco Viergang:
B24: 1. Gang: 13 / 57
B25: 2. Gang: 18 / 52
B26: 3. Gang: 23 / 47
B27: 4. Gang: 27 / 43
B29: Ape AC:
B30: 1. Gang: 13 / 57
B31: 2. Gang: 19 / 51
B32: 3. Gang: 26 / 44
B33: 4. Gang: 34 / 36
B35: GS 150, VS1-5, GS1-3:
B36: 1. Gang: 12 / 58
B37: 2. Gang: 16 / 54
B38: 3. Gang: 20 / 50
B39: 4. Gang: 24 / 46

Sheet INFO Reifen
B2: Reifen: | D2: Dimensionen | E2: Umfang
D3: 3.00-10 | E3: 1235
D4: 3.50-10 | E4: 1307
D5: 90-90-10 | E5: 1244
D6: 100-80-10 | E6: 1238
D7: 100-90-10 | E7: 1298
D8: 110-80-10 | E8: 1286
D9: 110-90-10 | E9: 1375
D10: 120-70-10 | E10: 1262
D11: 120-90-10 | E11: 1405
D12: 130-70-10 | E12: 1304
D13: 130-90-10 | E13: 1459

Sheet Tabelle1 (hidden)
